bitfinex/quotes_SOLUSD_20250422
["timestamp","ask_amount","ask_price","bid_price","bid_amount"]
[1745307225121,20.81501311,140.08,140.03,20.81501311]
[1745307225315,20.81501311,140.07,140.01,114.5392]
[1745307225523,43.84184984,140.12,140.03,20.81501311]
[1745307225728,7.13928749,140.07,140.03,20.81501311]
[1745307226045,7.13928749,140.07,140.04,42.89]
[1745307226236,7.13928749,140.07,140.04,63.70501311]
[1745307226445,7.13928749,140.07,140.05,63.70501311]
[1745307227241,17.84319075,140.11,140.05,63.70501311]
[1745307227549,38.65820386,140.11,140.07,42.89]
[1745307227847,41.98317324,140.2,140.1,20.81501311]
[1745307228014,7.13419419,140.17,140.11,42.89]
[1745307228214,27.9492073,140.17,140.11,42.89]
[1745307228413,27.9492073,140.17,140.12,63.70501311]
[1745307228638,20.81501311,140.16,140.12,42.89]
[1745307228834,7.13419419,140.17,140.12,42.89]
[1745307229041,7.13419419,140.17,140.14,42.89]
[1745307229042,7.1343402,140.17,140.14,42.89]
[1745307229334,7.1343402,140.17,140.14,63.70501311]
[1745307229536,7.1343402,140.17,140.14,42.89]
[1745307230238,27.94935331,140.17,140.13,42.89]
[1745307231042,27.94935331,140.17,140.12,20.81501311]
[1745307231240,7.1343402,140.17,140.12,20.81501311]
[1745307231411,7.1343402,140.17,140.12,26.0]
[1745307231614,7.1343402,140.17,140.13,20.81501311]
[1745307231808,7.1343402,140.17,140.14,20.81501311]
[1745307232034,7.1343402,140.17,140.13,20.81501311]
[1745307232529,7.16388386,140.18,140.09,131.4292]
[1745307232736,20.81501311,140.16,140.09,88.5392]
[1745307232951,7.13521227,140.15,140.09,88.5392]
[1745307233159,20.81501311,140.14,140.09,26.88021311]
[1745307233336,24.97324295,140.15,140.09,6.0652]
[1745307233534,24.97324295,140.15,140.09,26.88021311]
[1745307233839,20.81501311,140.14,140.09,26.88021311]
[1745307234047,24.97324295,140.15,140.09,26.88021311]
[1745307234515,20.81501311,140.14,140.09,26.88021311]
[1745307235056,7.13623064,140.13,140.09,26.88021311]
[1745307235516,27.95124375,140.13,140.09,6.0652]
[1745307235719,20.81501311,140.11,140.06,34.023]
[1745307235929,7.13623064,140.13,140.07,18.64964886]
[1745307236144,7.13521227,140.15,140.11,20.81501311]
[1745307237216,20.81501311,140.16,140.11,20.81501311]
[1745307237416,0.03,140.18,140.08,25.78810112]
[1745307237417,20.81501311,140.15,140.08,18.64964886]
[1745307237616,20.81501311,140.15,140.1,20.81501311]
[1745307238017,0.03,140.18,140.08,25.78827731]
[1745307238217,20.81501311,140.15,140.08,18.64964886]
[1745307238435,20.81501311,140.15,140.1,20.81501311]
[1745307238636,0.03,140.18,140.06,41.16265767]
[1745307238828,0.03,140.18,140.08,20.81501311]
[1745307239129,7.13673993,140.12,140.08,20.81501311]
[1745307239741,7.13673993,140.12,140.09,20.81501311]
[1745307241366,7.13623064,140.13,140.07,61.53964886]
[1745307241670,7.13470319,140.16,140.11,20.81501311]
[1745307241853,7.13470319,140.16,140.14,20.81501311]
[1745307242166,7.13470319,140.16,140.1,61.53964886]
[1745307242369,7.13470319,140.16,140.12,20.81501311]
[1745307242548,20.81501311,140.15,140.1,26.0]
[1745307242751,20.81501311,140.15,140.08,18.64964886]
[1745307243049,24.97146118,140.16,140.07,26.0]
[1745307243374,7.13419419,140.17,140.13,20.81501311]
[1745307243544,7.13419419,140.17,140.09,7.1382472]
[1745307243545,7.13419419,140.17,140.15,20.81501311]
[1745307243741,7.13419419,140.17,140.11,18.64964886]
[1745307243941,7.13419419,140.17,140.13,20.81501311]
[1745307244163,45.78469278,140.17,140.08,18.64964886]
[1745307244468,24.96967967,140.17,140.11,20.81501311]
[1745307244673,20.81501311,140.16,140.11,20.81501311]
[1745307244962,24.96967967,140.17,140.13,20.81501311]
[1745307245267,0.03,140.18,140.13,20.81501311]
[1745307245442,0.03,140.18,140.14,20.81501311]
[1745307245637,0.03,140.18,140.12,18.64964886]
[1745307245846,0.03,140.18,140.14,20.81501311]
[1745307246264,0.03,140.18,140.11,108.474]
[1745307246573,0.03,140.18,140.15,20.81501311]
[1745307246738,0.03,140.18,140.14,6.4218]
[1745307246931,0.03,140.18,140.16,20.81501311]
[1745307247138,0.03,140.18,140.14,6.4218]
[1745307247139,0.03,140.18,140.17,20.81501311]
[1745307247537,0.03,140.18,140.14,88.8958]
[1745307247741,0.03,140.18,140.06,7.13979722]
[1745307247969,0.03,140.18,140.13,20.81501311]
[1745307248178,0.03,140.18,140.16,20.81501311]
[1745307248338,0.03,140.18,140.17,26.0]
[1745307248543,0.03,140.23,140.17,147.93866197]
[1745307248766,0.03,140.23,140.22,47.53206197]
[1745307249568,0.03,140.23,140.22,157.95272534]
[1745307250047,0.03,140.23,140.22,137.13771223]
[1745307250247,0.03,140.25,140.24,44.64964886]
[1745307250549,0.03,140.27,140.25,18.64964886]
[1745307250754,0.03,140.27,140.26,39.46466197]
[1745307251265,0.03,140.31,140.29,26.0]
[1745307251467,0.03,140.31,140.3,20.81501311]
[1745307251673,0.03,140.31,140.25,82.474]
[1745307251968,0.03,140.31,140.26,18.64964886]
[1745307252168,20.84501311,140.31,140.26,20.81501311]
[1745307252373,0.03,140.31,140.25,82.474]
[1745307252745,20.81501311,140.28,140.25,82.474]
[1745307252968,20.81501311,140.29,140.24,20.81501311]
[1745307253172,0.03,140.31,140.23,18.64964886]
[1745307253348,0.03,140.31,140.3,20.81501311]
[1745307253676,0.03,140.31,140.3,39.46466197]
[1745307253873,0.03,140.31,140.3,20.81501311]
[1745307255173,0.03,140.31,140.28,82.474]
[1745307255474,0.03,140.31,140.27,20.81501311]
[1745307255681,20.81501311,140.3,140.25,6.0157]
[1745307255858,0.03,140.31,140.24,82.474]
[1745307256178,20.81501311,140.3,140.25,20.81501311]
[1745307256385,0.03,140.31,140.24,103.28901311]
[1745307256683,0.03,140.31,140.25,61.53964886]
[1745307256847,0.03,140.31,140.3,20.81501311]
[1745307259271,0.03,140.31,140.3,39.46466197]
[1745307259857,0.03,140.31,140.3,18.64964886]
[1745307260163,0.03,140.31,140.27,82.474]
[1745307260664,0.03,140.31,140.3,20.81501311]
[1745307261061,0.03,140.31,140.27,125.364]
[1745307261259,0.03,140.31,140.3,108.35466197]
[1745307261477,0.03,140.31,140.3,190.82866197]
[1745307261956,0.03,140.31,140.3,197.95624571]
[1745307262372,0.03,140.31,140.3,190.82866197]
[1745307262972,0.03,140.31,140.3,170.01364886]
[1745307263173,0.03,140.31,140.3,151.364]
[1745307263983,0.03,140.31,140.3,125.364]
[1745307264186,0.03,140.31,140.3,146.17901311]
[1745307264379,0.03,140.31,140.3,82.474]
[1745307265093,0.03,140.31,140.3,103.28901311]
[1745307265396,0.03,140.31,140.3,121.93866197]
[1745307266085,0.03,140.31,140.3,164.82866197]
[1745307266866,0.03,140.31,140.3,125.364]
[1745307267175,0.03,140.31,140.3,170.90496197]
[1745307267882,0.03,140.31,140.3,131.4403]
[1745307268069,0.03,140.31,140.3,125.364]
[1745307268269,0.03,140.31,140.3,146.17901311]
[1745307268683,0.03,140.31,140.3,125.364]
[1745307268891,0.03,140.31,140.26,125.364]
[1745307269070,20.81501311,140.29,140.26,82.474]
[1745307269270,20.81501311,140.29,140.22,6.0763]
[1745307269459,20.81501311,140.29,140.24,20.81501311]
[1745307269665,0.03,140.31,140.24,20.81501311]
[1745307269864,20.81501311,140.29,140.24,20.81501311]
[1745307270290,0.03,140.31,140.25,42.89]
[1745307270499,0.03,140.31,140.25,68.89]
[1745307270802,0.03,140.31,140.3,20.81501311]
[1745307270967,0.03,140.31,140.25,151.364]
[1745307271304,0.03,140.31,140.26,20.81501311]
[1745307271504,20.84501311,140.31,140.26,20.81501311]
[1745307271794,7.12758374,140.3,140.26,20.81501311]
[1745307271993,7.12758374,140.3,140.25,151.364]
[1745307272184,7.12758374,140.3,140.27,20.81501311]
[1745307272372,7.12758374,140.3,140.26,20.81501311]
[1745307272568,7.12758374,140.3,140.28,20.81501311]
[1745307272790,7.15717772,140.31,140.28,20.81501311]
[1745307273001,7.15717772,140.31,140.26,42.89]
[1745307273298,0.03,140.31,140.3,82.35466197]
[1745307273981,0.03,140.31,140.3,20.81501311]
[1745307274295,0.03,140.31,140.29,63.70501311]
[1745307275269,0.03,140.31,140.3,20.81501311]
[1745307275887,0.03,140.31,140.29,63.70501311]
[1745307276106,0.03,140.31,140.3,20.81501311]
[1745307277192,0.03,140.31,140.29,20.81501311]
[1745307277497,0.03,140.31,140.3,63.70501311]
[1745307277692,7.1542159,140.37,140.3,186.5403]
[1745307277884,7.12504453,140.35,140.31,20.81501311]
[1745307278698,20.81501311,140.34,140.3,137.574]
[1745307278997,20.81501311,140.32,140.27,42.89]
[1745307279294,1.6316,140.34,140.27,42.89]
[1745307279501,20.81501311,140.32,140.27,63.70501311]
[1745307279796,1.6316,140.34,140.27,42.89]
[1745307280090,20.81501311,140.31,140.27,42.89]
[1745307280486,20.81501311,140.3,140.26,82.474]
[1745307281204,17.81698095,140.32,140.26,82.474]
[1745307281382,20.81501311,140.28,140.21,263.31264886]
[1745307281572,20.81501311,140.27,140.21,20.87801311]
[1745307281774,20.81501311,140.26,140.21,20.87801311]
[1745307282095,45.7585619,140.32,140.21,20.87801311]
[1745307282271,20.81501311,140.28,140.21,18.71264886]
[1745307282683,20.81501311,140.28,140.23,20.81501311]
[1745307282872,20.81501311,140.28,140.21,18.71264886]
[1745307283072,20.81501311,140.27,140.21,0.063]
[1745307283272,81.39140112,140.32,140.22,20.81501311]
[1745307283672,20.81501311,140.28,140.21,0.063]
[1745307283881,20.81501311,140.28,140.22,20.81501311]
[1745307284094,7.12910814,140.27,140.23,20.81501311]
[1745307284393,7.12910814,140.27,140.24,20.81501311]
[1745307284781,7.12910814,140.27,140.22,18.64964886]
[1745307284988,7.12910814,140.27,140.23,20.81501311]
[1745307285402,20.81501311,140.29,140.23,20.81501311]
[1745307285692,20.81501311,140.29,140.22,18.64964886]
[1745307285894,20.81501311,140.29,140.23,20.81501311]
[1745307286382,20.81501311,140.28,140.23,20.81501311]
[1745307287206,20.81501311,140.28,140.21,0.063]
[1745307287369,81.39083978,140.32,140.22,20.81501311]
[1745307287574,20.81501311,140.28,140.23,20.81501311]
[1745307287770,20.81501311,140.26,140.21,20.87801311]
[1745307288073,20.81501311,140.26,140.21,0.063]
[1745307288391,1.6316,140.26,140.21,0.063]
[1745307288599,7.13012477,140.25,140.21,0.063]
[1745307288780,24.95543671,140.25,140.21,20.87801311]
[1745307289180,7.13012477,140.25,140.24,20.81501311]
[1745307289382,7.13012477,140.25,140.21,0.063]
[1745307289694,7.12910814,140.27,140.21,18.71264886]
[1745307290286,7.12910814,140.27,140.21,101.18664886]
[1745307290487,7.8272,140.35,140.28,26.0]
[1745307290688,7.12504453,140.35,140.33,20.81501311]
[1745307290897,7.12504453,140.35,140.29,18.64964886]
[1745307291098,7.12504453,140.35,140.33,20.81501311]
[1745307291278,7.12466354,140.36,140.34,20.81501311]
[1745307291902,7.15407149,140.37,140.35,20.81501311]
[1745307292112,0.03,140.37,140.36,20.81501311]
[1745307292409,0.03,140.37,140.36,39.46466197]
[1745307294213,0.03,140.37,140.36,20.81501311]
[1745307294682,0.03,140.37,140.36,39.46466197]
[1745307294884,0.03,140.37,140.36,20.81501311]
[1745307295094,0.03,140.37,140.34,44.64964886]
[1745307295311,0.03,140.37,140.33,6.2301]
[1745307295312,0.03,140.37,140.35,20.81501311]
[1745307295516,0.03,140.37,140.32,34.0]
[1745307295811,0.03,140.37,140.34,20.81501311]
[1745307296390,0.03,140.37,140.33,20.81501311]
[1745307296585,0.03,140.37,140.32,34.0]
[1745307296787,0.03,140.37,140.33,20.81501311]
[1745307297517,0.03,140.37,140.34,20.81501311]
[1745307298985,0.03,140.37,140.32,34.0]
[1745307299185,0.03,140.37,140.34,20.81501311]
[1745307299618,0.03,140.37,140.35,20.81501311]
[1745307300419,0.03,140.37,140.34,20.81501311]
[1745307300797,0.03,140.37,140.32,34.0]
[1745307301330,0.03,140.37,140.34,20.81501311]
[1745307301484,0.03,140.37,140.33,18.64964886]
[1745307301684,0.03,140.37,140.36,39.46466197]
[1745307302285,0.03,140.37,140.36,20.81501311]
[1745307302490,0.03,140.37,140.35,26.0]
[1745307302693,0.03,140.37,140.33,26.0]
[1745307302887,0.03,140.37,140.32,34.0]
[1745307303219,0.03,140.37,140.33,20.81501311]
[1745307303796,0.03,140.37,140.34,20.81501311]
[1745307304121,0.03,140.37,140.35,20.81501311]
[1745307304312,0.03,140.37,140.36,20.81501311]
[1745307304515,0.03,140.37,140.36,65.46466197]
[1745307305219,0.03,140.37,140.36,155.06319887]
[1745307305593,0.03,140.37,140.36,147.93866197]
[1745307305794,0.03,140.37,140.36,134.24818576]
[1745307305999,0.03,140.37,140.36,155.06319887]
[1745307306220,0.03,140.37,140.36,127.12364886]
[1745307306413,0.03,140.37,140.36,147.93866197]
[1745307306912,0.03,140.37,140.36,155.06319887]
[1745307307107,0.03,140.37,140.36,147.93866197]
[1745307307695,0.03,140.37,140.36,155.06319887]
[1745307308410,0.03,140.37,140.36,161.68189887]
[1745307310294,0.5278697,140.39,140.38,60.27967508]
[1745307310523,0.03,140.43,140.42,18.64964886]
[1745307310701,0.03,140.43,140.42,39.46466197]
[1745307311512,0.03,140.43,140.42,18.64964886]
[1745307311721,0.03,140.43,140.42,39.46466197]
[1745307312026,0.03,140.43,140.42,46.58615463]
[1745307313321,0.03,140.43,140.42,44.64964886]
[1745307313501,0.03,140.43,140.42,65.46466197]
[1745307314008,0.03,140.43,140.42,44.64964886]
[1745307314330,0.03,140.43,140.42,65.46466197]
[1745307315295,0.03,140.43,140.41,33.96]
[1745307315517,20.84501311,140.43,140.36,7.92147246]
[1745307315695,20.84501311,140.43,140.39,26.0]
[1745307315913,0.03,140.43,140.39,46.81501311]
[1745307316104,0.03,140.43,140.4,20.81501311]
[1745307316507,0.03,140.43,140.41,20.81501311]
[1745307316827,0.03,140.43,140.37,25.77359005]
[1745307316828,0.03,140.43,140.39,20.81501311]
[1745307317331,0.03,140.43,140.4,20.81501311]
[1745307317621,0.03,140.43,140.41,20.81501311]
[1745307317826,0.03,140.43,140.4,26.0]
[1745307318121,0.03,140.43,140.42,20.81501311]
[1745307318625,0.03,140.43,140.41,103.28901311]
[1745307318824,0.03,140.43,140.41,82.474]
[1745307319027,0.03,140.43,140.41,103.28901311]
[1745307319221,0.03,140.43,140.42,20.81501311]
[1745307319618,0.03,140.43,140.42,101.12364886]
[1745307319819,0.03,140.43,140.42,121.93866197]
[1745307320202,0.03,140.43,140.42,101.12364886]
[1745307320605,0.03,140.43,140.42,121.93866197]
[1745307321427,0.03,140.43,140.42,101.12364886]
[1745307321619,0.03,140.43,140.42,121.93866197]
[1745307321927,0.03,140.43,140.42,82.474]
[1745307322522,0.03,140.43,140.42,103.28901311]
[1745307323511,0.03,140.43,140.42,82.474]
[1745307325634,20.84501311,140.43,140.38,20.81501311]
[1745307326036,0.03,140.43,140.38,20.81501311]
[1745307326252,0.03,140.43,140.39,20.81501311]
[1745307326735,0.03,140.43,140.37,82.474]
[1745307327121,0.03,140.43,140.39,20.81501311]
[1745307327437,0.03,140.43,140.37,82.474]
[1745307328039,20.81501311,140.42,140.37,82.474]
[1745307328213,24.92699949,140.41,140.37,103.28901311]
[1745307328834,24.92699949,140.41,140.37,82.474]
[1745307329043,20.81501311,140.4,140.35,20.81501311]
[1745307329216,24.92699949,140.41,140.34,55.69501311]
[1745307329217,20.81501311,140.39,140.34,55.69501311]
[1745307329540,60.53699877,140.41,140.35,20.81501311]
[1745307329741,60.53699877,140.41,140.34,34.88]
[1745307329939,60.53699877,140.41,140.36,20.81501311]
[1745307329940,24.92699949,140.41,140.36,20.81501311]
[1745307330109,24.92699949,140.41,140.38,20.81501311]
[1745307330324,24.9534494,140.43,140.4,20.81501311]
[1745307330513,24.9534494,140.43,140.39,20.81501311]
[1745307330757,45.76846251,140.43,140.36,6.2846]
[1745307331044,45.76846251,140.43,140.39,42.89]
[1745307331431,20.81501311,140.42,140.39,42.89]
[1745307331625,20.81501311,140.41,140.39,42.89]
[1745307331943,7.8277,140.42,140.39,42.89]
[1745307332112,24.9534494,140.43,140.38,42.89]
[1745307332315,0.03,140.43,140.41,42.89]
[1745307332518,20.81501311,140.42,140.39,42.89]
[1745307333238,0.03,140.43,140.39,42.89]
[1745307333418,20.81501311,140.42,140.37,42.89]
[1745307333618,20.81501311,140.41,140.37,42.89]
[1745307333847,0.03,140.43,140.37,42.89]
[1745307334348,7.12301445,140.39,140.37,42.89]
[1745307334641,7.12301445,140.39,140.37,63.70501311]
[1745307334824,7.12301445,140.39,140.37,42.89]
[1745307335729,7.12301445,140.39,140.35,42.89]
[1745307335934,7.12301445,140.39,140.37,42.89]
[1745307336142,7.12301445,140.39,140.35,42.89]
[1745307336443,45.74378803,140.4,140.35,63.70501311]
[1745307336654,24.92877492,140.4,140.36,20.81501311]
[1745307337658,7.12250712,140.4,140.37,42.89]
[1745307337862,7.12250712,140.4,140.38,20.81501311]
[1745307338160,7.12250712,140.4,140.37,42.89]
[1745307338340,7.12250712,140.4,140.34,117.354]
[1745307338341,20.81501311,140.41,140.36,42.89]
[1745307338728,20.81501311,140.41,140.36,63.70501311]
[1745307338927,20.81501311,140.4,140.35,42.89]
[1745307339238,20.81501311,140.39,140.35,42.89]
[1745307339437,20.81501311,140.39,140.34,138.16901311]
[1745307339636,20.81501311,140.38,140.34,117.354]
[1745307339856,20.81501311,140.36,140.32,0.063]
[1745307340328,24.93765585,140.35,140.32,0.063]
[1745307340725,24.93765585,140.35,140.32,20.87801311]
[1745307341135,24.93765585,140.35,140.32,0.063]
[1745307341335,20.81501311,140.33,140.32,0.063]
[1745307341751,20.81501311,140.33,140.26,0.063]
[1745307341752,27.5972,140.33,140.26,0.063]
[1745307341958,69.22722622,140.33,140.26,0.063]
[1745307342163,20.81501311,140.28,140.26,0.063]
[1745307342365,7.12910814,140.27,140.26,0.063]
[1745307342942,27.94412125,140.27,140.26,0.063]
[1745307344348,7.12910814,140.27,140.26,0.063]
[1745307344546,35.63670148,140.31,140.26,0.063]
[1745307344754,20.81501311,140.27,140.26,0.063]
[1745307344952,35.63670148,140.31,140.26,0.063]
[1745307345163,20.81501311,140.27,140.26,0.063]
[1745307345338,35.63670148,140.31,140.26,0.063]
[1745307345539,20.81501311,140.27,140.26,0.063]
[1745307346546,27.94412125,140.27,140.26,0.063]
[1745307347164,7.12910814,140.27,140.26,0.063]
[1745307348073,24.94419563,140.32,140.26,20.87801311]
[1745307348242,45.75920874,140.32,140.27,20.81501311]
[1745307348566,45.75920874,140.32,140.26,20.87801311]
[1745307348567,7.12758374,140.3,140.26,20.87801311]
[1745307348769,7.12758374,140.3,140.28,20.81501311]
[1745307348978,7.12758374,140.3,140.26,0.063]
[1745307349139,7.12758374,140.3,140.28,20.81501311]
[1745307349339,7.12606,140.33,140.29,20.81501311]
[1745307349550,7.12606,140.33,140.31,20.81501311]
[1745307349769,7.12606,140.33,140.26,101.18664886]
[1745307349770,7.12504453,140.35,140.29,26.0]
[1745307349954,7.12504453,140.35,140.32,20.81501311]
[1745307350739,7.1245369,140.36,140.33,20.81501311]
[1745307350943,24.93587916,140.36,140.32,20.81501311]
[1745307352246,24.93587916,140.36,140.3,18.64964886]
[1745307352450,24.93587916,140.36,140.32,20.81501311]
[1745307353758,7.1245369,140.36,140.32,20.81501311]
[1745307354451,7.1245369,140.36,140.3,18.64964886]
[1745307354759,7.1245369,140.36,140.32,20.81501311]
[1745307354960,27.93955001,140.36,140.31,20.81501311]
[1745307355365,17.81134226,140.36,140.29,26.0]
[1745307355679,20.81501311,140.33,140.28,103.28901311]
[1745307355850,17.81134226,140.36,140.28,82.474]
[1745307356048,17.81134226,140.36,140.28,108.474]
[1745307356258,38.62635537,140.36,140.3,20.81501311]
[1745307356455,17.81134226,140.36,140.3,20.81501311]
[1745307356657,38.62635537,140.36,140.3,20.81501311]
[1745307356976,20.81501311,140.34,140.28,108.474]
[1745307357273,20.81501311,140.34,140.29,20.81501311]
[1745307357576,17.81261132,140.35,140.29,20.81501311]
[1745307357775,20.81501311,140.34,140.29,20.81501311]
[1745307357966,17.81261132,140.35,140.3,20.81501311]
[1745307358151,38.62762443,140.35,140.3,20.81501311]
[1745307358684,38.62762443,140.35,140.28,89.60230189]
[1745307358685,17.81261132,140.35,140.28,89.60230189]
[1745307358864,7.1245369,140.36,140.28,89.60230189]
[1745307358865,7.1245369,140.36,140.32,20.81501311]
[1745307359551,24.93587916,140.36,140.32,20.81501311]
[1745307360472,7.1245369,140.36,140.33,20.81501311]
[1745307360783,7.1245369,140.36,140.29,94.66767012]
[1745307360961,7.1245369,140.36,140.33,20.81501311]
[1745307361270,7.1245369,140.36,140.29,134.25167012]
[1745307361487,7.1245369,140.36,140.32,20.81501311]
[1745307361994,60.54337687,140.4,140.32,20.81501311]
[1745307362178,60.54337687,140.4,140.33,20.81501311]
[1745307362990,60.54337687,140.4,140.29,127.12364886]
[1745307363354,81.35838998,140.4,140.31,20.81501311]
[1745307363682,60.54337687,140.4,140.33,20.81501311]
[1745307363861,20.81501311,140.38,140.33,20.81501311]
[1745307364060,20.81501311,140.38,140.29,127.12364886]
[1745307364476,20.81501311,140.39,140.29,134.25170859]
[1745307364682,20.81501311,140.39,140.34,20.81501311]
[1745307364888,20.81501311,140.39,140.29,134.25170859]
[1745307365092,20.81501311,140.38,140.33,20.81501311]
[1745307365386,24.92877492,140.4,140.34,20.81501311]
[1745307365681,20.81501311,140.39,140.29,134.25170859]
[1745307365886,7.12352186,140.38,140.34,20.81501311]
[1745307366762,7.12352186,140.38,140.33,7.12590527]
[1745307366972,7.12352186,140.38,140.32,57.87306379]
[1745307367163,7.12352186,140.38,140.32,32.097]
[1745307367555,7.12352186,140.38,140.33,20.81501311]
[1745307367762,6.3403,140.42,140.35,20.81501311]
[1745307367993,7.12149266,140.42,140.35,26.0]
[1745307368167,7.12149266,140.42,140.38,26.0]
[1745307368365,7.15111001,140.43,140.38,26.0]
[1745307368689,20.81501311,140.41,140.35,82.474]
[1745307368858,20.81501311,140.4,140.35,82.474]
[1745307369183,24.95357387,140.43,140.35,82.474]
[1745307369479,20.81501311,140.42,140.37,20.81501311]
[1745307369686,20.81501311,140.4,140.32,24.74664886]
[1745307369982,24.93055059,140.39,140.32,26.91201311]
[1745307370182,20.81501311,140.38,140.33,20.81501311]
[1745307370360,7.12301445,140.39,140.34,20.81501311]
[1745307370559,7.12301445,140.39,140.35,20.81501311]
[1745307370869,27.93802756,140.39,140.34,20.81501311]
[1745307371275,20.81501311,140.38,140.33,20.81501311]
[1745307371962,45.7455637,140.39,140.34,20.81501311]
[1745307372485,20.81501311,140.38,140.32,52.91201311]
[1745307372863,20.81501311,140.38,140.33,20.81501311]
[1745307373180,20.81501311,140.35,140.3,46.81501311]
[1745307373379,20.81501311,140.35,140.29,18.64964886]
[1745307373558,20.81501311,140.35,140.3,20.81501311]
[1745307373964,7.12555223,140.34,140.28,6.2254]
[1745307374186,20.81501311,140.32,140.27,34.36]
[1745307374687,7.12555223,140.34,140.28,20.81501311]
[1745307374688,20.81501311,140.33,140.28,20.81501311]
[1745307375287,20.81501311,140.33,140.27,34.36]
[1745307375778,20.81501311,140.32,140.27,55.17501311]
[1745307375976,7.12707576,140.31,140.27,55.17501311]
[1745307376181,27.94208887,140.31,140.27,34.36]
[1745307376384,45.75977827,140.31,140.27,34.36]
[1745307376553,24.94476516,140.31,140.27,34.36]
[1745307376758,7.12707576,140.31,140.28,20.81501311]
[1745307377055,7.12707576,140.31,140.27,34.36]
[1745307377389,7.12707576,140.31,140.28,20.81501311]
[1745307377789,7.12707576,140.31,140.27,34.36]
[1745307377965,7.12707576,140.31,140.28,20.81501311]
[1745307378167,24.94298745,140.32,140.27,34.36]
[1745307378368,20.81501311,140.31,140.27,34.36]
[1745307378571,20.81501311,140.3,140.26,0.063]
[1745307378869,7.12656784,140.32,140.27,20.81501311]
[1745307379074,7.12656784,140.32,140.26,26.063]
[1745307379459,7.12656784,140.32,140.29,20.81501311]
[1745307379688,7.12656784,140.32,140.26,26.063]
[1745307380190,7.12656784,140.32,140.29,20.81501311]
[1745307380690,7.12656784,140.32,140.26,26.063]
[1745307380691,7.12656784,140.32,140.26,33.19259477]
[1745307381092,24.94298745,140.32,140.26,0.063]
[1745307381398,20.81501311,140.29,140.26,0.063]
[1745307381562,26.51908745,140.32,140.26,0.063]
[1745307381762,20.81501311,140.28,140.26,0.063]
[1745307382180,20.81501311,140.27,140.26,0.063]
[1745307382384,145.15192667,140.32,140.26,0.063]
[1745307382592,20.81501311,140.28,140.26,0.063]
[1745307382778,20.81501311,140.27,140.26,0.063]
[1745307383365,20.81501311,140.27,140.26,1e-08]
[1745307383569,20.81501311,140.27,140.25,1e-08]
[1745307383783,1.5761,140.25,140.24,1e-08]
[1745307383963,43.20612622,140.25,140.24,1e-08]
[1745307384166,29.52123788,140.25,140.24,1e-08]
[1745307386275,68.98589985,140.25,140.24,1e-08]
[1745307386473,18.64964886,140.24,140.22,1e-08]
[1745307386679,20.81501311,140.23,140.22,1e-08]
[1745307386881,39.46466197,140.23,140.22,1e-08]
[1745307387082,18.64964886,140.22,140.21,1e-08]
[1745307387269,39.46466197,140.22,140.21,1e-08]
[1745307387469,39.46466197,140.22,140.16,0.063]
[1745307387697,18.64964886,140.22,140.16,0.063]
[1745307387997,20.81501311,140.17,140.16,0.063]
[1745307388315,20.81501311,140.17,140.08,27.6487]
[1745307388316,44.64964886,140.09,140.06,0.063]
[1745307388478,44.64964886,140.1,140.06,0.063]
[1745307388798,20.81501311,140.07,140.06,0.063]
[1745307389613,4.22543946,140.09,140.06,0.063]
[1745307389921,20.81501311,140.1,140.06,0.063]
[1745307390101,7.13826825,140.09,140.06,0.063]
[1745307390506,7.13826825,140.09,140.06,20.87801311]
[1745307390906,7.13770226,140.11,140.07,20.81501311]
[1745307391219,27.95271537,140.11,140.06,0.063]
[1745307391397,7.13770226,140.11,140.06,20.87801311]
[1745307391797,27.95271537,140.11,140.06,20.87801311]
[1745307393021,7.13770226,140.11,140.06,20.87801311]
[1745307393227,7.13770226,140.11,140.06,0.063]
[1745307393515,7.13770226,140.11,140.08,20.81501311]
[1745307394105,27.95271537,140.11,140.06,0.063]
[1745307394314,27.95271537,140.11,140.06,20.87801311]
[1745307394730,7.13770226,140.11,140.07,20.81501311]
[1745307394901,27.95271537,140.11,140.06,0.063]